Cogmind - Beta 15 @@@ ROGUE MODE // 2025.09.27 @ 00:49:45 Player: luka.null Result: Destroyed by G-34 Mercenary with Small Laser Performance ------------- Evolutions (1) 500 Regions Visited (3) 600 Robots Destroyed (47) 235 Value Destroyed (1092) 1092 Prototype IDs (1) 20 Alien Tech Used (0) 0 Bonus (0) 0 TOTAL SCORE: 2447 Bonus ------- None Cogmind --------- Core Integrity 0/400 Matter 300/300 Energy 95/100 System Corruption 0% Temperature Cool (6) Movement Flying (110) Ox1 Location -9/Storage Parts ------- > --- POWER (1) -------- (None) > --- PROPULSION (2) --- Improved Flight Unit > --- UTILITY (4) ------ (None) > --- WEAPON (2) ------- Improved Light Cannon Scythe > --- INVENTORY (5) ---- Light Ion Engine VTOL Module Peak State ------------ > --- POWER ------------ Light Nuclear Core > --- PROPULSION ------- VTOL Module Improved Flight Unit > --- UTILITY ---------- Large Storage Unit Targeting Computer > --- WEAPON ----------- Subdweller Machine Gun Scythe > --- INVENTORY -------- Light Ion Engine Light Treads Light Treads Light Treads Light Treads Medium Laser Small Laser Beam Cannon Light Assault Rifle Light Assault Rifle Heavy Assault Rifle Minigun Minigun Scythe [Rating: 17] Favorites ----------- Power Light Ion Engine Engine Light Ion Engine Power Core Light Nuclear Core Propulsion Light Treads Treads Light Treads Flight Unit Improved Flight Unit Utility Small Storage Unit Storage Small Storage Unit Processor Targeting Computer Protection Improved Light Armor Plating Weapon Light Assault Rifle Energy Gun Medium Laser Energy Cannon Beam Cannon Ballistic Gun Light Assault Rifle Ballistic Cannon Improved Light Cannon Impact Weapon Flail Slashing Weapon Scythe Build | -11 -10 -9 -9 ------- Run | Yrd Mat Mat Sto Slots Evolved 2 | . . 2 . Power . | . . . . Propulsion . | . . . . Utility 2 | . . 2 . Weapon . | . . . . Parts Attached 39 | 7 14 17 1 Power 8 | 2 1 5 . Engine 7 | 2 1 4 . Core 1 | . . 1 . Reactor . | . . . . Propulsion 11 | 2 4 5 . Treads 8 | 2 4 2 . Leg . | . . . . Wheel . | . . . . Hover . | . . . . Flight 3 | . . 3 . Utility 5 | 1 3 1 . Device . | . . . . Storage 3 | 1 2 . . Processor 1 | . 1 . . Hackware . | . . . . Protection 1 | . . 1 . Artifact . | . . . . Weapon 15 | 2 6 6 1 Energy Gun 4 | . 3 1 . Energy Cannon 1 | . 1 . . Ballistic Gun 6 | 2 2 2 . Ballistic Cannon 1 | . . . 1 Launcher . | . . . . Special Weapon . | . . . . Impact Weapon 1 | . . 1 . Slashing Weapon 2 | . . 2 . Piercing Weapon . | . . . . Special Melee Weapon . | . . . . Unidentified Prototypes 1 | . . 1 . Parts Lost 8 | . 1 4 3 Power 2 | . . 1 1 Propulsion 1 | . . . 1 Utility 2 | . . 2 . Weapon 3 | . 1 1 1 Highest Loss Streak 2 | . 1 1 2 To Critical Strikes . | . . . . Average Backups 6 | 2 6 7 3 Power . | . 1 . 1 Propulsion 1 | . 2 1 1 Utility . | . . . . Weapon 3 | . 3 5 1 Tool/Special . | . . . . Unused Backups 3 | . 2 1 . Power . | . . . . Propulsion 2 | . 2 . . Utility . | . . . . Weapon 1 | . . 1 . Tool/Special . | . . . . Average Slot Usage (%) 77 | . 87 69 48 Engine 12 | . 14 10 8 Treads 20 | . 28 12 . Flight 5 | . . 9 20 Storage 10 | . 14 6 . Processor 3 | . 2 6 . Energy Gun 6 | . 10 1 2 Ballistic Gun 13 | . 16 12 . Slashing Weapon 2 | . . 5 8 Peak Build Rating 17 | 6 8 17 12 Average Rating 8 | 5 6 12 10 On Entrance 6 | . 6 8 12 Naked Turns . | . . . . Heaviest Build 31 | 13 30 31 11 Greatest Support 40 | 40 40 40 10 Greatest Overweight (x) 6 | . . 6 1 Average Overweight (x) . | . . . . Largest Inventory Capacity 15 | 8 15 15 5 Average Capacity 9 | 7 8 10 5 Most Carried 15 | 4 9 15 4 Average Carried 6 | 2 6 7 2 Final Capacity 15 | 8 15 5 5 Final Carried 8 | 4 8 3 2 Class Distribution -------------------- 100% | Mutant Dominant Class ---------------- Mutant | -10/Materials Mutant | -9/Materials Mutant | -9/Storage Resources | -11 -10 -9 -9 ----------- Run | Yrd Mat Mat Sto Matter Collected 914 | 171 404 319 20 Remotely . | . . . . Salvage Created 1467 | . 688 556 223 Parts 93 | . 47 34 12 Haulers Intercepted . | . . . . Recyclers Shooed 3 | . 3 . . Parts Field Recycled . | . . . . Retrieved Matter . | . . . . Parts Self-Destructed . | . . . . Prevented . | . . . . Kills | -11 -10 -9 -9 ------- Run | Yrd Mat Mat Sto Combat Hostiles Destroyed 41 | . 22 15 4 Melee 17 | . . 13 4 Guns 23 | . 22 1 . Classes Destroyed 7 | . 6 1 . Worker 2 | . 1 1 . Recycler 2 | . 1 . 1 Watcher 2 | . 1 1 . Swarmer 18 | . 12 6 . Grunt 18 | . 8 7 3 Sentry 3 | . . 2 1 Subdweller 2 | . 2 . . Best Kill Streak 5 | . 3 5 4 Combat Bots Only 4 | . 3 4 3 Max Kills in Single Turn 2 | . 2 1 1 Gunslinging 1 | . 1 . . Exploded . | . . . . Melee 1 | . . 1 1 Uniques/NPCs Destroyed . | . . . . Combat | -11 -10 -9 -9 -------- Run | Yrd Mat Mat Sto Hostile Shots Fired 274 | . 118 118 38 Missed 86 | . 31 36 19 Hits 188 | . 87 82 19 Projectile 188 | . 87 82 19 AOE 1 | . . . 1 Critical Strikes 2 | . . 2 . Damage Taken 2331 | . 1080 964 287 Core 575 | . 173 296 106 Absorbed by Shields . | . . . . Core Remaining (%) 65 | 100 30 . . Volleys Fired 90 | . 78 10 2 Largest 2 | . 2 2 1 Hottest 90 | . 90 65 33 Shots Fired 156 | . 141 13 2 Gun 154 | . 141 13 . Cannon 2 | . . . 2 Launcher . | . . . . Special . | . . . . Kinetic 83 | . 70 11 2 Thermal 73 | . 71 2 . Explosive . | . . . . Electromagnetic . | . . . . Robot Hit Streak 8 | . 8 5 . Robot Miss Streak 6 | . 6 2 1 Penetration Max . | . . . . Secondary Targets 3 | . 3 . . Max Gunslinging Chain 1 | . 1 . . Shots Hit Robots 136 | . 85 39 12 Core Hits 57 | . 37 16 4 Critical Kills . | . . . . Critical Parts Destroyed 1 | . . 1 . Critical Strikes 5 | . . 5 . Smash 1 | . . 1 . Sever 4 | . . 4 . Melee Attacks 64 | . . 48 16 Impact 7 | . . 7 . Slashing 57 | . . 41 16 Piercing . | . . . . Sneak Attacks 1 | . . . 1 Combat Hostiles . | . . . . Follow-up Attacks . | . . . . Damage Inflicted 2582 | . 1064 1113 405 Guns 1184 | . 1036 148 . Cannons . | . . . . Explosions . | . . . . Melee 1370 | . . 965 405 Ramming 28 | . 28 . . Kinetic 647 | . 532 115 . Thermal 537 | . 504 33 . Explosive . | . . . . Electromagnetic . | . . . . Impact 208 | . . 208 . Slashing 1162 | . . 757 405 Piercing . | . . . . Highest Corruption 2 | . 2 . . Average Corruption 2 | . 2 . . Corruption Purged . | . . . . Corruption Blocked . | . . . . Effects 17 | . 17 . . Message Errors 8 | . 8 . . Matter Fused 3 | . 3 . . Energy Discharges 2 | . 2 . . Data Loss (minor) 3 | . 3 . . Data Loss (major) 1 | . 1 . . Overload Shots . | . . . . Overflow Damage 93 | . . 68 25 Projectiles . | . . . . Explosions . | . . . . Melee 93 | . . 68 25 Knockbacks . | . . . . Impact . | . . . . Kinetic . | . . . . Secondary . | . . . . Self-Inflicted Damage . | . . . . Shots . | . . . . Rammed 7 | . 7 . . Targets Rammed 8 | . 8 . . Kicked . | . . . . Crushed 1 | . 1 . . Highest Temperature 330 | . 330 44 . Average Temperature 92 | . 99 11 . Received Heat Transfer 738 | . 333 297 108 Effects 2 | . 2 . . Energy Bleed 2 | . 2 . . Siege Activations . | . . . . Martial Activations . | . . . . Shielding Activations . | . . . . Robots Disrupted . | . . . . Combat Hostiles . | . . . . Robots Corrupted 1 | . . 1 . Combat Hostiles 1 | . . 1 . Parts Fried . | . . . . Impact Corruptions 1 | . . 1 . Robots Melted . | . . . . Combat Hostiles . | . . . . Parts Melted 2 | . 2 . . Heat Transferred 1460 | . 1386 74 . Parts Sabotaged . | . . . . Parts Stolen . | . . . . Parts Stripped . | . . . . Power Chain Reactions . | . . . . Alert | -11 -10 -9 -9 ------- Run | Yrd Mat Mat Sto Maximum Alert Level 1 | . . 1 . Low Security (%) 99 | 100 100 98 100 Level 1 . | . . 1 . Level 2 . | . . . . Level 3 . | . . . . Level 4 . | . . . . Level 5 . | . . . . High Security . | . . . . Max Security . | . . . . Peak Influence 203 | . 176 203 105 Initial 85 | . . 17 85 Average 59 | . 67 48 72 Influence Increases 1103 | . 519 444 140 Destroy 0b10 Robot/C 780 | . 400 300 80 Destroy 0b10 Robot/NC 30 | . 15 10 5 Destroy Leader 154 | . 72 72 10 Successful Hack 16 | . 16 . . Destroy Structure 3 | . 1 2 . Partial Spotted 15 | . . . 15 Lose Combat Pursuer 105 | . 15 60 30 Influence Decreases 1038 | . 477 283 278 Entered New Map 143 | . . 25 118 Time Decay 815 | . 467 218 130 Lost Part 80 | . 10 40 30 Squads Dispatched 5 | . 2 2 1 Investigation 1 | . 1 . . Extermination . | . . . . Reinforcement 4 | . 1 2 1 Assault . | . . . . Garrison . | . . . . Intercept . | . . . . Searches Triggered . | . . . . Construction Impeded . | . . . . Haulers Reinforced . | . . . . Active Scanning Responses . | . . . . Cargo Convoy Interrupts . | . . . . Stealth | -11 -10 -9 -9 --------- Run | Yrd Mat Mat Sto Distress Signals 7 | . 3 1 3 Communications Jammed . | . . . . Distress Signals . | . . . . Times Spotted 81 | . 40 24 17 Peak Tracking Total 9 | . 5 6 9 Tactical Retreats 6 | . 1 3 2 Traps | -11 -10 -9 -9 ------- Run | Yrd Mat Mat Sto Traps Triggered 4 | . 4 . . Indirectly . | . . . . Trap Hack Attempts . | . . . . Triggered . | . . . . Disarmed . | . . . . Reprogrammed . | . . . . Reused . | . . . . Traps Extracted . | . . . . Installed . | . . . . Triggered . | . . . . Machines | -11 -10 -9 -9 ---------- Run | Yrd Mat Mat Sto Machines Disabled . | . . . . Max in Single Turn . | . . . . Machines Repaired . | . . . . Machines Dismantled . | . . . . Machines Sabotaged . | . . . . Overloaded Fab Kills . | . . . . Hacking | -11 -10 -9 -9 --------- Run | Yrd Mat Mat Sto Machines Accessed 12 | . 7 4 1 Terminals 11 | . 6 4 1 Fabricators . | . . . . Repair Stations . | . . . . Recycling Units 1 | . 1 . . Scanalyzers . | . . . . Garrison Access . | . . . . Total Hacks 32 | . 20 10 2 Successful 17 | . 11 4 2 Failed 15 | . 9 6 . Catastrophic 1 | . . 1 . Database Lockouts . | . . . . Manual 18 | . 11 6 1 Terminals 31 | . 19 10 2 Fabricators . | . . . . Repair Stations . | . . . . Recycling Units 1 | . 1 . . Scanalyzers . | . . . . Garrison Access . | . . . . Terminal Hacks 7 | . 4 2 1 Record 1 | . . . 1 Robot Analysis 2 | . 2 . . Branch Access Points 2 | . 1 1 . Emergency Access Points 1 | . . 1 . Zone Layout 1 | . 1 . . Fabricator Hacks . | . . . . Repair Station Hacks . | . . . . Recycling Unit Hacks 1 | . 1 . . Report Inventory 1 | . 1 . . Scanalyzer . | . . . . Garrison Access Hacks . | . . . . Unauthorized Hacks 9 | . 6 2 1 Terminals 9 | . 6 2 1 Botnet 9 | . 6 2 1 Fabricators . | . . . . Repair Stations . | . . . . Recycling Units . | . . . . Scanalyzers . | . . . . Garrison Access . | . . . . Data Cores Recovered . | . . . . Used . | . . . . Hacking Detections 11 | . 7 3 1 Full Trace Events 5 | . 2 3 . Feedback Events . | . . . . Feedback Blocked . | . . . . Robot Schematics Acquired . | . . . . Robots Built . | . . . . Authchips . | . . . . Time . | . . . . Total Robot Build Rating . | . . . . Part Schematics Acquired . | . . . . Parts Built . | . . . . Authchips . | . . . . Time . | . . . . Total Part Build Rating . | . . . . Parts Repaired . | . . . . Time . | . . . . Parts Recycled . | . . . . Recycled Matter . | . . . . Retrieved Matter . | . . . . Retrieved Components . | . . . . Parts Scanalyzed . | . . . . Part Schematics Acquired . | . . . . Parts Damaged . | . . . . Bothacking | -11 -10 -9 -9 ------------ Run | Yrd Mat Mat Sto Used RIF Installer . | . . . . Robots Hacked . | . . . . Non-combat . | . . . . Combat . | . . . . Robot Hacks Applied . | . . . . Relay Couplers Released . | . . . . Fabnet Peak Effective % . | . . . . Robots Rewired . | . . . . Allies Hacked . | . . . . Hacks Repelled . | . . . . Allies | -11 -10 -9 -9 -------- Run | Yrd Mat Mat Sto Total Allies . | . . . . Largest Group . | . . . . Highest-Rated Group . | . . . . Highest-Rated Ally . | . . . . Total Orders . | . . . . Ally Attacks . | . . . . Total Damage . | . . . . Kills . | . . . . Allies Corrupted . | . . . . Allies Melted . | . . . . Intel | -11 -10 -9 -9 ------- Run | Yrd Mat Mat Sto Active Infowar (turns) . | . . . . Robot Analysis Total 2 | . 2 . . Derelict Logs Recovered . | . . . . Drone Launches . | . . . . Drone Recoveries . | . . . . Exploration | -11 -10 -9 -9 ------------- Run | Yrd Mat Mat Sto Turns Passed 2900 | 95 1669 859 277 Spaces Moved 1945 | 56 864 726 299 Core 6 | 6 . . . Treads 1153 | 50 864 239 . Legs . | . . . . Wheels . | . . . . Hover . | . . . . Flight 786 | . . 487 299 Fastest Speed 34 | 50 160 34 37 Average Speed 115 | 148 160 82 59 Slowest Speed 480 | 160 160 480 110 Overloaded Moves . | . . . . Propulsion Burnouts . | . . . . Robots Hopped 2 | . . . 2 Potential Cave-ins . | . . . . Cave-ins Triggered . | . . . . Exploration Rate (%) 44 | 6 89 44 39 Regions Visited 3 Branch Regions 1 Pre-discovered Areas . | . . . . Known Exits Taken 1 | . . 1 . Unknown Exits Taken 2 | 1 1 . . Scrap Searched . | . . . . Spaces Dug . | . . . . Terrain Destroyed 1 | . 1 . . Melee . | . . . . Projectile 1 | . 1 . . AOE . | . . . . Terrain Rammed . | . . . . Walls Destroyed . | . . . . Machines Disabled . | . . . . Actions | -11 -10 -9 -9 --------- Run | Yrd Mat Mat Sto Total 2350 | 65 1012 900 373 Wait 139 | . 31 56 52 Move 1938 | 55 863 725 295 Hop 2 | . . . 2 Pick Up 21 | 3 6 10 2 Fast Attach 10 | 6 1 3 . Attach 3 | . 1 1 1 Detach 2 | . . 2 . Swap 40 | 1 15 23 1 Drop 33 | . 9 22 2 Fire 90 | . 78 10 2 Melee 64 | . . 48 16 Ram . | . . . . Kick . | . . . . Crush 8 | . 8 . . Escape Stasis . | . . . . Rewire . | . . . . Trap . | . . . . Miscellaneous . | . . . . Route ------- -11/Scrapyard -10/Materials (discovered 5 exits: *Mat x3 / *Min / [*Sub]) -9/Materials (discovered 4 exits: [*Mat] / *Min / *Sto x2) -9/Storage History --------- Turn | Location | Event 3 | -11/Scrapyard | Discovered new exit (range 15) 96 | -11/Scrapyard | Entered Materials 306 | -10/Materials | Build established: Mutant 622 | -10/Materials | Discovered new exit (range 18) 841 | -10/Materials | Discovered new exit (range 8) 931 | -10/Materials | Discovered new exit (range 11) 996 | -10/Materials | Derelicts attacked the area 1053 | -10/Materials | Core integrity fell below 50% 1331 | -10/Materials | Identified exit to Mines 1411 | -10/Materials | Discovered new exit (range 16) 1731 | -10/Materials | Discovered new exit (range 14) 1765 | -10/Materials | Entered another Materials area 1765 | -9/Materials | Evolved 2 slots: Utility x2 2376 | -9/Materials | Discovered new exit (range 6) 2421 | -9/Materials | Discovered new exit (range 8) 2465 | -9/Materials | Core integrity fell below 50% 2617 | -9/Materials | Discovered new exit (range 13) 2618 | -9/Materials | Identified exit to Mines 2618 | -9/Materials | Identified exit to Storage 2624 | -9/Materials | Entered Storage 2739 | -9/Storage | Core integrity fell below 20% 2901 | -9/Storage | Destroyed by G-34 Mercenary with Small Laser Last Messages --------------- 02769_ G-34 Mercenary destroyed. 02771_ R-06 Scavenger collects Beam Rifle. 02772_ Sneak attack on R-06 Scavenger. 02772_ Destroyed Lgt. Ion Engine. 02772_ R-06 Scavenger destroyed. 02774_ Acquired 10 matter. 02794_ W-16 Scout sends out distress signal. 02827_ K-01 Serf cleans the Compression Vault. 02839_ Compression Vault explodes. 02839_ Ion Engine destroyed. 02839_ Scythe destroyed. 02839_ G-34 Mercenary destroyed. 02839_ K-01 Serf collects debris. 02855_ W-16 Scout sends out distress signal. 02869_ Connecting with Door Terminal... 02877_ Imp. Flight Unit destroyed. 02887_ K-01 Serf collects debris. 02897_ G-34 Mercenary destroyed. 02898_ Acquired 10 matter. 02899_ K-01 Serf collects debris. Map ----- +----------------------------------------------------+ | ????""" ###### ## """ """ #?? | | ????""" + """ """ ?? | | ????""" ######### """ """ #?? | | ?????????????????# % #?? | | ??????????????????# *= #?? | | ??????????????????# ###/###" "#???? | | ??????????????????###/ ## ^ #????????? | | ????????????????????# #????????? | | ????????????????????# #????????? | | ????????????????????# ####### #????????? | | ????????????????????# #?????## ##????????? | | ???????????????######/######## #?????????? | | ???????????????# # #?????????? | | ???????????????# # #?????????? | | ???????????????# # #?"???????? | | ???????????????# # # "???????? | | ???????????????# # # "???????? | | ???????????????# / / ????????? | | ???????????????######+####+### #?????????? | | ???????????????????## #### ### #?????????? | | ???????????######### ########### | | ??????????# # + # | | ??????????# """ # ######## # # | | ??????????# """ # #?###### # """""" # | | ??????????# """ # #?# # # "????" # | | ??????????# + ###@ k # # "????" # | | ??????????# """ # Yg% # # """""" # | | ??????????# """ # Y# k # + # | | ?????????# """ # # # # # | | ??????????# + ###### ########### | | ??????????###############????# T#????????? | | ?????????????????????????????# ##????????? | | ?????????????????????????????""""?????????? | | ??????????????????????????????????????????? | | ??????????????????????????????????????????? | | ??????????????????????????????????????????? | | ??????????????????????????????????????????? | | ??????????????????????????????????????????? | | ??????????????????????????????????????????? | | ??????????????????????????????????????????? | | ??????????????????????????????????????????? | | ??????????????????????????????????????????? | | ??????????????????????????????????????????? | | ??????????????????????????????????????????? | | ??????????????????????????????????????????? | | ??????????????????????????????????????????? | | ??????????????????????????????????????????? | | | | | | | +----------------------------------------------------+ Best States ------------- Heat Dissipation 28 Energy Generation 14 Energy Capacity 250 Matter Stores 300 Matter Capacity 300 Sight Range 16 Terrain Scan Density 10 Armor Coverage 150 Evasion (%) 63 Targeting Accuracy 5 Recoil Reduction 2 Item Schematics ----------------- None Robot Schematics ------------------ None Fabricated ------------ Nothing Repaired ---------- Nothing Alien Tech Used ----------------- None Achievements -------------- Quantum Hacking Challenges ------------ None Game ------ Seed BackupLaserThruster Manual? 0 Play Time 00:49:52 Cumulative 15.3 hours Start 2025.09.25 @ 19:30:02 End 2025.09.27 @ 00:49:45 Sessions 3 Manual Loads 0 Difficulty Rogue Special Mode None Game No. 16 Rogue 13 Adventurer 3 Explorer 0 Win Type - Total 0 Types 0/0/0/0/0/0/0/0/0/0 Lore% 15 Gallery% 12 Achievement% 14 Wizard Run 0 Options --------- Layout 1 ASCII 0 Keyboard 0 Movement Vi Keybinds 0 Fullscreen 0 Font 20/Terminus Map View 64x48 Zoom Use 0% Tactical HUD 1 Map Filters NONE Filters NONE Steam 1 RUN: 25f7d5ed-cf0e-453d-80d4-42f58889a3e5